fUST/lending_fUST_20251025
["ID","MTS","AMOUNT","RATE_DAILY","PERIOD"]
[392324797,1761336641799,-500.0,0.00021295,2]
[392324798,1761336641808,-500.0,0.00021295,2]
[392324800,1761336641817,-500.0,0.00021295,2]
[392324802,1761336641827,-500.0,0.00021295,2]
[392324804,1761336641837,-500.0,0.00021295,2]
[392324806,1761336641847,-177.4108125,0.000213,2]
[392324808,1761336641856,-305.84489178,0.000213,2]
[392324810,1761336641865,-1486.56049002,0.000213,2]
[392324812,1761336641875,-1026.55192945,0.000213,2]
[392324814,1761336641884,-500.0,0.00021305,2]
[392324816,1761336641894,-500.0,0.00021305,2]
[392324818,1761336641904,-500.0,0.00021305,2]
[392324820,1761336641913,-500.0,0.00021305,2]
[392324822,1761336641922,-500.0,0.00021306,2]
[392324824,1761336641932,-754.9,0.00021307,3]
[392324826,1761336641941,-500.0,0.00021307,2]
[392324828,1761336641950,-300.0,0.00021317,20]
[392324830,1761336641960,-300.0,0.00021317,20]
[392324832,1761336641969,-300.0,0.00021317,20]
[392324834,1761336641978,-300.0,0.00021317,20]
[392324836,1761336641988,-300.0,0.00021317,20]
[392324838,1761336641997,-300.0,0.00021317,20]
[392324840,1761336642006,-300.0,0.00021317,20]
[392324842,1761336642015,-300.0,0.00021317,20]
[392324844,1761336642024,-300.0,0.00021317,20]
[392324845,1761336642033,-300.0,0.00021317,20]
[392324847,1761336642043,-300.0,0.00021317,20]
[392324849,1761336642054,-300.0,0.00021317,20]
[392324851,1761336642063,-300.0,0.00021317,20]
[392324853,1761336642072,-300.0,0.00021317,20]
[392324855,1761336642082,-300.0,0.00021317,20]
[392324857,1761336642091,-500.0,0.00021372,2]
[392324859,1761336642100,-457.88196129,0.00021373,2]
[392324861,1761336642109,-360.31113483,0.00021373,2]
[392324863,1761336642118,-500.0,0.00021373,2]
[392324865,1761336642127,-500.07598891,0.00021373,2]
[392324867,1761336642137,-500.0,0.00021373,2]
[392324869,1761336642146,-150.0,0.00021389,30]
[392324871,1761336642156,-1000.0,0.00021421,2]
[392324873,1761336642165,-1000.0,0.00021421,2]
[392324875,1761336642175,-500.0,0.00021422,2]
[392324877,1761336642184,-188.72,0.0002147,3]
[392324879,1761336642193,-566.19,0.0002147,3]
[392324881,1761336642203,-377.45,0.00021471,3]
[392324883,1761336642212,-500.0,0.00021479,2]
[392324884,1761336642222,-150.0,0.00021481,2]
[392324886,1761336642236,-150.0,0.00021481,2]
[392324888,1761336642245,-187.147,0.00021481,2]
[392324890,1761336642254,-150.0,0.00021481,2]
[392324892,1761336642263,-983.0,0.00021481,2]
[392324894,1761336642272,-632.0,0.00021481,2]
[392324896,1761336642281,-2165.0,0.00021481,2]
[392324898,1761336642290,-305.84489178,0.000215,2]
[392324900,1761336642300,-1486.56049002,0.000215,2]
[392324902,1761336642309,-1026.55192945,0.000215,2]
[392324904,1761336642318,-357.51160214,0.0002163,2]
[392324906,1761336642328,-420.0,0.0002168,2]
[392324908,1761336642337,-500.0,0.00021696,2]
[392324910,1761336642346,-305.84489178,0.000217,2]
[392324912,1761336642355,-1486.56049002,0.000217,2]
[392324914,1761336642364,-1026.55192945,0.000217,2]
[392324916,1761336642373,-600.0,0.00021725,20]
[392324918,1761336642382,-500.0,0.00021855,2]
[392324920,1761336642391,-160.0,0.00021879,2]
[392324922,1761336642400,-191.14376706,0.00021881,2]
[392324923,1761336642410,-1486.56049002,0.000219,2]
[392324925,1761336642419,-1026.55192945,0.000219,2]
[392324927,1761336642429,-500.0,0.00021916,2]
[392324929,1761336642439,-500.0,0.00021917,2]
[392324931,1761336642448,-500.0,0.00021917,2]
[392324933,1761336642457,-500.0,0.00021917,2]
[392324935,1761336642466,-500.0,0.00021917,2]
[392324937,1761336642475,-500.0,0.00021917,2]
[392324939,1761336642484,-500.0,0.00021917,2]
[392324941,1761336642494,-269.6213378,0.00021917,2]
[392324943,1761336642503,-446.29191318,0.00021918,2]
[392325334,1761336646713,-7351.2,0.00021207,10]
[392325336,1761336646722,-53.70808682,0.00021918,2]
[392325338,1761336646732,-500.0,0.00021918,2]
[392325340,1761336646741,-500.0,0.00021918,2]
[392325342,1761336646750,-500.0,0.00021918,2]
[392325344,1761336646760,-500.0,0.00021918,2]
[392325346,1761336646769,-500.0,0.00021918,2]
[392325348,1761336646779,-500.0,0.00021918,2]
[392325350,1761336646788,-500.0,0.00021918,2]
[392325352,1761336646799,-500.0,0.00021918,2]
[392325354,1761336646809,-500.0,0.00021918,2]
[392325356,1761336646818,-500.0,0.00021918,2]
[392325357,1761336646827,-500.0,0.00021918,2]
[392325359,1761336646837,-500.0,0.00021918,2]
[392325361,1761336646846,-500.0,0.00021918,2]
[392325364,1761336646855,-500.0,0.00021918,2]
[392325366,1761336646865,-534.05280276,0.00021918,2]
[392325368,1761336646874,-500.0,0.00021918,2]
[392325370,1761336646883,-500.0,0.00021918,2]
[392325371,1761336646893,-500.0,0.00021918,2]
[392325374,1761336646902,-500.0,0.00021918,2]
[392325376,1761336646912,-500.0,0.00021918,2]
[392325378,1761336646921,-500.0,0.00021918,2]
[392325380,1761336646930,-500.0,0.00021918,2]
[392325382,1761336646940,-500.0,0.00021918,2]
[392325384,1761336646949,-500.0,0.00021918,2]
[392325386,1761336646959,-500.0,0.00021918,2]
[392325388,1761336646968,-500.0,0.00021918,2]
[392325390,1761336646977,-500.0,0.00021918,2]
[392325392,1761336646986,-500.0,0.00021918,2]
[392325394,1761336646995,-500.0,0.00021918,2]
[392325396,1761336647005,-500.0,0.00021918,2]
[392325398,1761336647014,-500.0,0.00021918,2]
[392325400,1761336647024,-500.0,0.0002192,2]
[392325402,1761336647033,-1500.0,0.00021968,2]
[392325404,1761336647043,-500.0,0.0002197,2]
[392325406,1761336647052,-500.0,0.00021973,2]
[392325408,1761336647062,-500.0,0.00021973,2]
[392325410,1761336647071,-280.5785995,0.00021973,2]
[392325412,1761336647080,-502.29843691,0.00021973,2]
[392325414,1761336647089,-500.0,0.00021973,2]
[392325416,1761336647098,-501.54793365,0.00021973,2]
[392325417,1761336647108,-500.0,0.00021973,2]
[392325420,1761336647117,-500.0,0.00021973,2]
[392325421,1761336647126,-169.68167242,0.00022,10]
[392325423,1761336647136,-3443.17521907,0.00022,2]
[392325425,1761336647145,-1566.4108164,0.0002209,2]
[392325428,1761336647156,-1486.56049002,0.000221,2]
[392325430,1761336647166,-1026.55192945,0.000221,2]
[392325432,1761336647175,-500.0,0.00022156,2]
[392325433,1761336647184,-7266.2,0.000222,7]
[392325435,1761336647194,-500.0,0.00022244,2]
[392325437,1761336647203,-500.0,0.00022399,2]
[392325439,1761336647212,-1486.56049002,0.000224,2]
[392325441,1761336647220,-1026.55192945,0.000224,2]
[392325443,1761336647229,-260.0,0.00022427,2]
[392325445,1761336647238,-767.20373282,0.00022516,2]
[392325447,1761336647248,-500.0,0.00022518,2]
[392325449,1761336647257,-1000.0,0.00022521,2]
[392325451,1761336647266,-1057.06736699,0.00022521,2]
[392325453,1761336647275,-159.5583124,0.00022538,2]
[392325456,1761336647285,-500.0,0.00022599,2]
[392325458,1761336647294,-1486.56049002,0.000226,2]
[392325459,1761336647304,-731.48295097,0.000226,2]
[392325664,1761337526982,400.0,0.0003013,120]
[392325669,1761337601429,906.055596,0.00013699,2]
[392325676,1761337667361,10000.01,0.00018,2]
[392325677,1761337667383,1398.40611193,0.00018,2]
[392325681,1761337683104,2096.11463058,0.0003,120]
[392325689,1761337698916,1008.83539127,0.00015,2]
[392325800,1761337846799,-656.16275011,0.00019125,2]
[392325801,1761337871421,1074.56724248,0.000187,2]
[392325802,1761338004485,5000.0,0.000187,2]
[392325803,1761338027527,4343.83724989,0.000187,2]
[392325804,1761338049664,656.17275011,0.000187,2]
[392325805,1761338049688,4343.82724989,0.000187,2]
[392325806,1761338057674,5000.0,0.000187,2]
[392325807,1761338079818,656.18275011,0.000187,2]
[392325808,1761338079840,4343.81724989,0.000187,2]
[392325809,1761338102573,5000.0,0.000187,2]
[392325810,1761338118209,656.19275011,0.000187,2]
[392325811,1761338118232,4343.80724989,0.000187,2]
[392325812,1761338125897,5000.0,0.000187,2]
[392325813,1761338140983,656.20275011,0.000187,2]
[392325814,1761338141006,4343.79724989,0.000187,2]
[392325815,1761338148750,5000.0,0.000187,2]
[392325816,1761338200394,178.589625,0.0001996,61]
[392325817,1761338200604,178.589625,0.0001996,120]
[392325818,1761338231819,204.59214639,0.00017921,2]
[392325819,1761338513118,5634.34,0.00018,2]
[392325820,1761338534050,297.82817433,0.00018106,2]
[392325821,1761338541239,1181.46,0.00018,2]
[392325823,1761338692601,768.29856561,0.00018106,2]
[392325825,1761338864037,2029.15169437,0.00030137,120]
[392325826,1761338922655,250.0,0.0001837,2]
[392325848,1761339037767,-289.76618329,0.00019277,2]
[392325849,1761339037777,-174.81381671,0.00019535,2]
[392325850,1761339037788,-1144.48450276,0.00019535,2]
[392325851,1761339037800,-23.00407873,0.00019535,2]
[392325852,1761339037810,-2191.34528284,0.00019678,2]
[392325864,1761339043634,-551.17548331,0.00019678,2]
[392325865,1761339043694,-226.50032805,0.00019678,2]
[392325866,1761339043704,-1163.000051,0.00019802,2]
[392325867,1761339043712,-178.589625,0.0001996,2]
[392325868,1761339043721,-277.0,0.0002,2]
[392325869,1761339043730,-928.80725811,0.0002,2]
[392325870,1761339043739,-356.69777567,0.00020036,2]
[392325871,1761339043749,-603.67226031,0.00020036,2]
[392325872,1761339043758,-906.055596,0.00020187,2]
[392325874,1761339043767,-1594.3271799,0.00020743,2]
[392325876,1761339043777,-205.83530187,0.00020743,2]
[392325878,1761339043787,-177.4108125,0.000208,2]
[392325880,1761339043796,-264.32418158,0.000208,2]
[392325882,1761339043806,-305.84489178,0.000208,2]
[392325884,1761339043815,-1408.44500814,0.000208,2]
[392325886,1761339043823,-403.33096709,0.00020805,2]
[392325887,1761339043833,-269.68602278,0.00020842,2]
[392325890,1761339043843,-500.0,0.00020842,2]
[392325891,1761339043852,-472.52440549,0.00020842,2]
[392325893,1761339043861,-500.0,0.00020842,2]
[392325896,1761339043871,-525.69704883,0.00020842,2]
[392325897,1761339043881,-486.50851977,0.00020842,2]
[392325900,1761339043890,-500.0,0.00020842,2]
[392325902,1761339043899,-500.0,0.00020842,2]
[392325904,1761339043908,-500.0,0.00020842,2]
[392325906,1761339043918,-500.0,0.00020842,2]
[392325907,1761339043927,-500.0,0.00020842,2]
[392325910,1761339043937,-500.0,0.00020842,2]
[392325912,1761339043947,-500.0,0.00020842,2]
[392325914,1761339043957,-252.76177438,0.00020842,2]
[392325916,1761339043967,-500.0,0.00020842,2]
[392325918,1761339043976,-500.0,0.00020842,2]
[392325920,1761339043986,-500.0,0.00020842,2]
[392325922,1761339043995,-500.0,0.00020842,2]
[392325948,1761339044212,-500.0,0.00020842,2]
[392325953,1761339044263,-486.57339167,0.00020842,2]
[392325955,1761339044273,-500.0,0.00020842,2]
[392325956,1761339044282,-500.0,0.00020842,2]
[392325958,1761339044291,-500.0,0.00020842,2]
[392325960,1761339044301,-500.0,0.00020842,2]
[392325962,1761339044310,-500.0,0.00020842,2]
[392325964,1761339044319,-500.0,0.00020842,2]
[392325966,1761339044328,-500.0,0.00020842,2]
[392325968,1761339044338,-500.0,0.00020842,2]
[392325970,1761339044347,-500.0,0.00020842,2]
[392325972,1761339044356,-500.0,0.00020842,2]
[392325974,1761339044365,-500.0,0.00020842,2]
[392325976,1761339044374,-500.0,0.00020842,2]
[392325978,1761339044382,-500.0,0.00020842,2]
[392325980,1761339044391,-500.0,0.00020842,2]
[392325982,1761339044400,-500.0,0.00020842,2]
[392325984,1761339044409,-500.0,0.00020842,2]
[392325986,1761339044418,-500.0,0.00020842,2]
[392325988,1761339044427,-500.0,0.00020842,2]
[392325990,1761339044436,-500.0,0.00020842,2]
[392325992,1761339044446,-500.0,0.00020842,2]
[392325994,1761339044455,-500.0,0.00020842,2]
[392325996,1761339044464,-500.0,0.00020842,2]
[392325998,1761339044474,-500.0,0.00020842,2]
[392326000,1761339044483,-500.0,0.00020842,2]
[392326002,1761339044493,-500.0,0.00020842,2]
[392326004,1761339044502,-500.0,0.00020842,2]
[392326006,1761339044512,-500.0,0.00020842,2]
[392326008,1761339044521,-500.0,0.00020842,2]
[392326010,1761339044530,-500.0,0.00020842,2]
[392326012,1761339044539,-500.0,0.00020842,2]
[392326014,1761339044549,-500.0,0.00020842,2]
[392326016,1761339044558,-500.0,0.00020842,2]
[392326018,1761339044567,-500.0,0.00020842,2]
[392326020,1761339044577,-500.0,0.00020842,2]
[392326022,1761339044586,-500.0,0.00020842,2]
[392326024,1761339044595,-500.0,0.00020842,2]
[392326026,1761339044604,-500.0,0.00020842,2]
[392326028,1761339044613,-500.0,0.00020842,2]
[392326030,1761339044622,-500.0,0.00020842,2]
[392326032,1761339044631,-500.0,0.00020842,2]
[392326034,1761339044640,-500.0,0.00020842,2]
[392326036,1761339044650,-500.0,0.00020842,2]
[392326037,1761339044658,-500.0,0.00020842,2]
[392326039,1761339044668,-500.0,0.00020842,2]
[392326042,1761339044679,-500.0,0.00020842,2]
[392326044,1761339044698,-500.0,0.00020842,2]
[392326045,1761339044711,-500.0,0.00020842,2]
[392326048,1761339044721,-500.0,0.00020842,2]
[392326050,1761339044730,-500.0,0.00020842,2]
[392326051,1761339044740,-500.0,0.00020842,2]
[392326053,1761339044749,-500.0,0.00020842,2]
[392326055,1761339044759,-500.0,0.00020842,2]
[392326057,1761339044768,-500.0,0.00020842,2]
[392326059,1761339044778,-500.0,0.00020842,2]
[392326061,1761339044787,-151.0,0.00020843,7]
[392326063,1761339044796,-155.267146,0.00020844,7]
[392326065,1761339044806,-155.267146,0.00020844,7]
[392326067,1761339044815,-155.267146,0.00020844,7]
[392326069,1761339044824,-155.267146,0.00020844,7]
[392326071,1761339044834,-155.267146,0.00020844,7]
[392326073,1761339044843,-155.267146,0.00020844,7]
[392326075,1761339044852,-155.267146,0.00020844,7]
[392326077,1761339044862,-155.267146,0.00020844,7]
[392326079,1761339044871,-155.267146,0.00020844,7]
[392326081,1761339044881,-155.267146,0.00020844,7]
[392326082,1761339044890,-155.267146,0.00020844,7]
[392326084,1761339044899,-155.267146,0.00020844,7]
[392326086,1761339044908,-155.267146,0.00020844,7]
[392326088,1761339044917,-155.267146,0.00020844,7]
[392326090,1761339044926,-155.267146,0.00020844,7]
[392326092,1761339044936,-155.267146,0.00020844,7]
[392326094,1761339044945,-160.554268,0.00020845,3]
[392326096,1761339044955,-151.0,0.00020845,2]
[392326098,1761339044965,-151.0,0.00020845,2]
[392326100,1761339044974,-151.0,0.00020845,2]
[392326101,1761339044983,-151.0,0.00020845,2]
[392326102,1761339044992,-151.0,0.00020845,2]
[392326103,1761339045001,-151.0,0.00020845,2]
[392326104,1761339045011,-151.0,0.00020845,2]
[392326105,1761339045019,-151.0,0.00020845,2]
[392326106,1761339045029,-151.0,0.00020845,7]
[392326107,1761339045038,-151.0,0.00020846,7]
[392326108,1761339045047,-277.738654,0.00020846,7]
[392326109,1761339045057,-500.0,0.00020846,2]
[392326110,1761339045066,-445.69691162,0.00020846,2]
[392326111,1761339045075,-500.0,0.00020848,2]
[392326112,1761339045085,-500.0,0.00020848,2]
[392326113,1761339045094,-311.46642737,0.00020848,2]
[392326114,1761339045103,-155.267146,0.00020852,7]
[392326115,1761339045112,-155.267146,0.00020852,7]
[392326116,1761339045123,-155.267146,0.00020852,7]
[392326117,1761339045133,-155.267154,0.00020852,7]
[392326118,1761339045142,-500.0,0.00020856,2]
[392326119,1761339045151,-151.0,0.00020856,2]
[392326120,1761339045160,-204.758946,0.00020856,2]
[392326121,1761339045170,-500.0,0.00020873,2]
[392326122,1761339045180,-500.0,0.00020873,2]
[392326123,1761339045189,-500.0,0.00020873,2]
[392326124,1761339045198,-500.29893777,0.00020873,2]
[392326125,1761339045208,-183.62426972,0.00020873,2]
[392326126,1761339045217,-500.0,0.00020873,2]
[392326127,1761339045226,-274.36808995,0.00021,2]
[392326128,1761339045236,-151.0,0.00021024,2]
[392326129,1761339045245,-151.0,0.00021024,2]
[392326130,1761339045255,-152.96043574,0.00021024,2]
[392326131,1761339045264,-221.88543242,0.00021024,2]
[392326132,1761339045274,-151.0,0.00021024,2]
[392326133,1761339045283,-151.0,0.00021024,2]
[392326134,1761339045293,-1000.0,0.00021024,2]
[392326135,1761339045302,-151.0,0.00021024,2]
[392326136,1761339045311,-1000.0,0.00021024,2]
[392326137,1761339045321,-151.0,0.00021024,2]
[392326138,1761339045330,-1000.0,0.00021024,2]
[392326139,1761339045340,-151.0,0.00021024,2]
[392326140,1761339045350,-1000.0,0.00021024,2]
[392326141,1761339045360,-151.0,0.00021024,2]
[392326142,1761339045372,-1000.0,0.00021024,2]
[392326143,1761339045382,-151.0,0.00021024,2]
[392326144,1761339045392,-187.58760619,0.00021024,2]
[392326145,1761339045402,-201.87452586,0.00021024,2]
[392326146,1761339045412,-177.4108125,0.000211,2]
[392326147,1761339045422,-264.32418158,0.000211,2]
[392326148,1761339045432,-305.84489178,0.000211,2]
[392326149,1761339045442,-1408.44500814,0.000211,2]
[392326150,1761339045452,-382.96780742,0.0002113,2]
[392326151,1761339045461,-341.92409628,0.00021277,2]
[392326152,1761339045470,-600.0,0.00021278,20]
[392326153,1761339045479,-177.4108125,0.000213,2]
[392326154,1761339045490,-264.32418158,0.000213,2]
[392326155,1761339045500,-305.84489178,0.000213,2]
[392326156,1761339045510,-1408.44500814,0.000213,2]
[392326157,1761339045519,-281.4,0.000214,2]
[392326158,1761339045529,-1000.0,0.00021421,2]
[392326159,1761339045539,-1000.0,0.00021421,2]
[392326160,1761339045549,-264.32418158,0.000215,2]
[392326161,1761339045559,-305.84489178,0.000215,2]
[392326163,1761339045568,-1408.44500814,0.000215,2]
[392326165,1761339045578,-983.0,0.00021684,2]
[392326166,1761339045588,-632.0,0.00021684,2]
[392326167,1761339045597,-2165.0,0.00021684,2]
[392326168,1761339045607,-264.32418158,0.000217,2]
[392326169,1761339045616,-305.84489178,0.000217,2]
[392326170,1761339045625,-1408.44500814,0.000217,2]
[392326171,1761339045635,-1408.44500814,0.000219,2]
[392326172,1761339045645,-500.0,0.00021918,2]
[392326173,1761339045654,-603.40528028,0.00021918,2]
[392326174,1761339045664,-500.0,0.00021918,2]
[392326175,1761339045673,-403.33096709,0.00021958,10]
[392326176,1761339045683,-1049.2141649,0.00021968,2]
[392326177,1761339045692,-1408.44500814,0.000221,2]
[392326178,1761339045703,-3132.8216328,0.00022141,2]
[392326179,1761339045712,-1408.44500814,0.000224,2]
[392326180,1761339045721,-1408.44500814,0.000226,2]
[392326181,1761339045730,-179.85611511,0.0002265,2]
[392326182,1761339045739,-1408.44500814,0.000228,2]
[392326183,1761339045748,-1594.3271799,0.00023118,2]
[392326184,1761339045758,-923.0803436,0.00023188,2]
[392326185,1761339045767,-443.63727148,0.00023273,2]
[392326186,1761339045776,-500.0,0.00023273,2]
[392326187,1761339045786,-394.08200928,0.00023277,2]
[392326188,1761339045795,-440.35,0.00023278,3]
[392326189,1761339045804,-220.18,0.00023278,3]
[392326190,1761339045813,-660.55,0.00023278,3]
[392326191,1761339045822,-1446.29099476,0.00023285,2]
[392326192,1761339045832,-14023.79226803,0.00023288,30]
[392326194,1761339046657,-438.63549823,0.00023288,30]
[392326195,1761339046668,-327.74254354,0.00023288,30]
[392326219,1761340232180,-5669.85222594,0.00019,2]
[392326220,1761340232191,-2412.27435222,0.00019126,2]
[392326221,1761340232201,-1425.36431159,0.0001915,2]
[392326223,1761340232210,-666.0,0.00019802,2]
[392326225,1761340232220,-159.77469719,0.0002,2]
[392326227,1761340232229,-276.25519424,0.00020066,2]
[392326229,1761340232239,-463.27822362,0.00021973,2]
[392326231,1761340232248,-325.9811292,0.00022066,2]
[392326233,1761340232258,-1200.0,0.00022098,2]
[392326235,1761340232268,-178.15614225,0.00022099,2]
[392326237,1761340232277,-498.50815463,0.00022099,2]
[392326239,1761340232287,-500.0,0.00022099,2]
[392326241,1761340232297,-500.0,0.00022099,2]
[392326243,1761340232307,-500.0,0.00022099,2]
[392326245,1761340232316,-500.0,0.00022099,2]
[392326246,1761340232325,-500.0,0.00022099,2]
[392326248,1761340232335,-500.0,0.00022099,2]
[392326249,1761340232346,-1029.0,0.00022099,2]
[392326250,1761340232355,-300.0,0.00022099,2]
[392326253,1761340232364,-632.0,0.000221,2]
[392326255,1761340232373,-983.0,0.000221,2]
[392326256,1761340232382,-2165.0,0.000221,2]
[392326257,1761340232391,-16755.89195571,0.000221,2]
[392326258,1761340232400,-403.33096709,0.00022157,2]
[392326259,1761340232409,-500.0,0.00022203,2]
[392326260,1761340232418,-1955.5498468,0.00022412,2]
[392326261,1761340232427,-1061.79355747,0.00022434,7]
[392326262,1761340232437,-833.90080251,0.00022724,2]
[392326263,1761340232447,-1371.43318431,0.00022792,2]
[392326264,1761340232457,-1275.25009887,0.00023104,2]
[392326265,1761340232472,-1106.37207512,0.00023188,2]
[392326266,1761340232481,-261.67304469,0.00023277,2]
[392326267,1761340232490,-199.80322296,0.00023277,2]
[392326268,1761340232499,-12011.85437535,0.00023288,30]
[392326269,1761340232780,-305.57180953,0.00022099,2]
[392326270,1761340232792,-194.42819047,0.00022099,2]
[392326271,1761340232801,-105.57180953,0.00022099,2]
[392326288,1761340239989,150.0,0.00017108,30]
[392326350,1761340240633,-394.42819047,0.00022099,2]
[392326352,1761340240642,-500.0,0.00022099,2]
[392326354,1761340240651,-500.0,0.00022099,2]
[392326355,1761340240662,-38.54645584,0.00022099,2]
[392326361,1761340240708,150.0,0.00018664,30]
[392326621,1761340243083,-150.0,0.00020219,30]
[392326622,1761340243093,-461.45354416,0.00022099,2]
[392326623,1761340243103,-431.2502301,0.00022099,2]
[392326624,1761340243246,-68.7497699,0.00022099,2]
[392326625,1761340243256,-500.0,0.00022099,2]
[392326626,1761340243266,-500.0,0.00022099,2]
[392326627,1761340243275,-500.0,0.00022099,2]
[392326628,1761340243285,-500.0,0.00022099,2]
[392326629,1761340243294,-329.1508155,0.00022099,2]
[392326630,1761340243304,-500.0,0.00022099,2]
[392326631,1761340243313,-500.0,0.00022099,2]
[392326632,1761340243322,-500.0,0.00022099,2]
[392326633,1761340243331,-500.0,0.00022099,2]
[392326634,1761340243341,-500.0,0.00022099,2]
[392326635,1761340243351,-500.0,0.00022099,2]
[392326636,1761340243360,-500.0,0.00022099,2]
[392326637,1761340243370,-500.0,0.00022099,2]
[392326638,1761340243379,-500.0,0.00022099,2]
[392326639,1761340243389,-500.0,0.00022099,2]
[392326640,1761340243398,-500.0,0.00022099,2]
[392326641,1761340243408,-68197.97531485,0.00023288,30]
[392326642,1761340243418,-403.33096709,0.00023288,30]
[392326643,1761340243427,-151.0,0.00023288,7]
[392326644,1761340243436,-163.0,0.00023288,3]
[392326645,1761340243447,-163.0,0.00023288,3]
[392326646,1761340243456,-331.0,0.00023288,3]
[392326647,1761340243465,-162.22579818,0.00023288,3]
[392326648,1761340243477,-161.95094999,0.00023288,3]
[392326649,1761340243486,-151.0,0.00023288,7]
[392326650,1761340243495,-152.0,0.00023288,3]
[392326651,1761340243504,-152.0,0.00023288,3]
[392326652,1761340243514,-152.0,0.00023288,3]
[392326653,1761340243523,-152.0,0.00023288,3]
[392326654,1761340243532,-152.0,0.00023288,3]
[392326655,1761340243541,-175.33456728,0.00023288,3]
[392326656,1761340243550,-1000.0,0.000235,2]
[392326657,1761340243560,-165.139836,0.00023697,10]
[392326658,1761340243569,-600.0,0.00023752,20]
[392326659,1761340243578,-1481.00782526,0.00023827,2]
[392326660,1761340243588,-165.139836,0.00023985,10]
[392326661,1761340243597,-403.33096709,0.00024,30]
[392326662,1761340243605,-420.0,0.00024011,2]
[392326663,1761340243614,-375.70706417,0.00024066,2]
[392326664,1761340243624,-1106.37207509,0.00024114,2]
[392326665,1761340243633,-225.39862688,0.00024527,4]
[392326666,1761340243641,-660.55,0.00024537,3]
[392326667,1761340243651,-153.0,0.00024547,2]
[392326668,1761340243660,-153.0,0.00024547,2]
[392326669,1761340243669,-153.0,0.00024547,2]
[392326670,1761340243679,-153.0,0.00024547,2]
[392326671,1761340243688,-153.0,0.00024547,2]
[392326672,1761340243697,-160.0,0.0002463,13]
[392326673,1761340243706,-213.878824,0.00024658,2]
[392326674,1761340243715,-151.0,0.00024658,2]
[392326675,1761340243724,-282.40665195,0.00024658,2]
[392326676,1761340243734,-151.0,0.000247,10]
[392326677,1761340243744,-151.0,0.00024713,2]
[392326678,1761340243754,-202.88694548,0.00024768,2]
[392326679,1761340243765,-220.17,0.0002479,3]
[392326680,1761340243775,-6523.02,0.0002479,10]
[392326681,1761340243783,-6539.58,0.000248,7]
[392326682,1761340243793,-8594.21010424,0.000248,2]
[392326683,1761340243802,-160.0,0.00024872,2]
[392326684,1761340243812,-500.0,0.00024873,2]
[392326685,1761340243821,-180908.45896438,0.000249,2]
[392326720,1761340246190,-796.83522686,0.000249,2]
[392326721,1761340270111,4000.0,0.00030137,120]
[392326722,1761340379189,867.049087,0.00013699,2]
[392326750,1761341432183,-205.64574969,0.0001905,2]
[392326752,1761341432192,-263.80524201,0.00019193,2]
[392326754,1761341432202,-56.13324101,0.0002,2]
[392326756,1761341432213,-855.32,0.0002,2]
[392326758,1761341432224,-993.39393509,0.0002,2]
[392326809,1761341438102,-5.2139521,0.0002,2]
[392326810,1761341438114,-867.049087,0.00020187,2]
[392326811,1761341438123,-311.29018557,0.00021193,2]
[392326812,1761341438133,-600.0,0.0002254,20]
[392326813,1761341438143,-300.0,0.00022658,2]